[Event "*** Qualifier 4: Titled Tuesday 3|2 Blitz"]
[Site "Chess.com"]
[Date "2017.04.25"]
[Round "8"]
[White "kreonx"]
[Black "MasterLeif"]
[Result "0-1"]
[WhiteElo "2230"]
[BlackElo "2315"]
[TimeControl "180+2"]
[EndTime "14:45:02 PDT"]
[Termination "MasterLeif won by resignation"]

1. e4 {[%clk 0:03:02]} 1... Nf6 {[%clk 0:02:54.7]} 2. e5 {[%clk 0:03:00.9]} 2...
Nd5 {[%clk 0:02:54.6]} 3. Nc3 {[%clk 0:03:02.5]} 3... Nxc3 {[%clk 0:02:55.3]} 4.
dxc3 {[%clk 0:03:02.5]} 4... d6 {[%clk 0:02:56.7]} 5. Bc4 {[%clk 0:02:57.8]}
5... Nc6 {[%clk 0:02:54.8]} 6. Nf3 {[%clk 0:02:57.6]} 6... dxe5 {[%clk
0:02:44.1]} 7. Qxd8+ {[%clk 0:02:54.3]} 7... Nxd8 {[%clk 0:02:46]} 8. Nxe5
{[%clk 0:02:55.3]} 8... Be6 {[%clk 0:02:43]} 9. Bf4 {[%clk 0:02:47.1]} 9... f6
{[%clk 0:02:36]} 10. Bxe6 {[%clk 0:01:41.7]} 10... fxe5 {[%clk 0:02:35.1]} 11.
Bxe5 {[%clk 0:01:39.9]} 11... Nxe6 {[%clk 0:02:36.4]} 12. O-O-O {[%clk
0:01:39.5]} 12... Rd8 {[%clk 0:02:26.8]} 13. Rde1 {[%clk 0:01:36.2]} 13... Kf7
{[%clk 0:02:26]} 14. f4 {[%clk 0:01:36.1]} 14... Rd7 {[%clk 0:02:16.6]} 15. f5
{[%clk 0:01:34.9]} 15... Nd8 {[%clk 0:02:17.6]} 16. Rd1 {[%clk 0:01:29.4]} 16...
Ke8 {[%clk 0:02:09.8]} 17. Rde1 {[%clk 0:01:27.3]} 17... Nc6 {[%clk 0:02:07.4]}
18. Bf4 {[%clk 0:01:28.1]} 18... g6 {[%clk 0:01:57.3]} 19. f6 {[%clk 0:01:29.2]}
19... Kf7 {[%clk 0:01:48.4]} 20. fxe7 {[%clk 0:01:28.1]} 20... Bxe7 {[%clk
0:01:48]} 21. Rhf1 {[%clk 0:01:28.3]} 21... Kg7 {[%clk 0:01:46.7]} 22. Re6
{[%clk 0:01:13.3]} 22... Rf8 {[%clk 0:01:36.5]} 23. Rxe7+ {[%clk 0:00:46.1]}
23... Rxe7 {[%clk 0:01:37.8]} 24. Bh6+ {[%clk 0:00:46.9]} 24... Kxh6 {[%clk
0:01:39.3]} 25. Rxf8 {[%clk 0:00:47.9]} 25... Kg7 {[%clk 0:01:33.8]} 26. Rf2
{[%clk 0:00:44.8]} 26... Ne5 {[%clk 0:01:33.1]} 27. h3 {[%clk 0:00:45.1]} 27...
h5 {[%clk 0:01:33.6]} 28. b3 {[%clk 0:00:43.2]} 28... h4 {[%clk 0:01:34.4]} 29.
c4 {[%clk 0:00:40.2]} 29... c5 {[%clk 0:01:32.7]} 30. a3 {[%clk 0:00:40.4]}
30... g5 {[%clk 0:01:33]} 31. Kb2 {[%clk 0:00:39.1]} 31... Kg6 {[%clk
0:01:33.4]} 32. Kc3 {[%clk 0:00:39.1]} 32... Nc6 {[%clk 0:01:21.7]} 33. Kd2
{[%clk 0:00:30.2]} 33... Nd4 {[%clk 0:01:18.4]} 34. Kc3 {[%clk 0:00:28.5]} 34...
Re2 {[%clk 0:01:16.6]} 35. Rf8 {[%clk 0:00:26.6]} 35... Rxc2+ {[%clk 0:01:06.8]}
36. Kd3 {[%clk 0:00:27.3]} 36... Rxg2 {[%clk 0:01:08.1]} 37. b4 {[%clk
0:00:28.8]} 37... Ne6 {[%clk 0:00:58.3]} 38. Rg8+ {[%clk 0:00:28.4]} 38... Kf7
{[%clk 0:00:58.2]} 39. Rb8 {[%clk 0:00:29]} 39... Rg3+ {[%clk 0:00:53.7]} 40.
Ke4 {[%clk 0:00:29.7]} 40... Rxa3 {[%clk 0:00:48.5]} 41. Rxb7+ {[%clk
0:00:30.2]} 41... Kf6 {[%clk 0:00:49.3]} 42. Kd5 {[%clk 0:00:26]} 42... cxb4
{[%clk 0:00:47.5]} 43. c5 {[%clk 0:00:24.7]} 43... Nxc5 {[%clk 0:00:43.2]} 44.
Kxc5 {[%clk 0:00:25.9]} 44... Rxh3 {[%clk 0:00:43.2]} 45. Rxb4 {[%clk
0:00:26.7]} 45... Rd3 {[%clk 0:00:39.5]} 46. Kc4 {[%clk 0:00:24.9]} 46... Rd7
{[%clk 0:00:37.6]} 47. Rb8 {[%clk 0:00:24.1]} 47... Kf5 {[%clk 0:00:37.9]} 48.
Rh8 {[%clk 0:00:24.8]} 48... Kg4 {[%clk 0:00:38.7]} 49. Rh7 {[%clk 0:00:25.4]}
49... Rxh7 {[%clk 0:00:38.2]} 0-1

[Event "*** Qualifier 4: Titled Tuesday 3|2 Blitz"]
[Site "Chess.com"]
[Date "2017.04.25"]
[Round "8"]
[White "GrigorGrigorov"]
[Black "severomorskij"]
[Result "1-0"]
[WhiteElo "2538"]
[BlackElo "2662"]
[TimeControl "180+2"]
[EndTime "14:45:13 PDT"]
[Termination "GrigorGrigorov won on time"]

1. d4 {[%clk 0:03:02]} 1... Nf6 {[%clk 0:03:00.1]} 2. c4 {[%clk 0:03:02.6]} 2...
e6 {[%clk 0:03:01.2]} 3. Nc3 {[%clk 0:03:03]} 3... Bb4 {[%clk 0:03:01.5]} 4. e3
{[%clk 0:03:04.3]} 4... b6 {[%clk 0:03:01.7]} 5. Ne2 {[%clk 0:03:04.5]} 5... Ne4
{[%clk 0:03:02.7]} 6. Bd2 {[%clk 0:03:04.1]} 6... Nxd2 {[%clk 0:03:03.2]} 7.
Qxd2 {[%clk 0:03:05.4]} 7... O-O {[%clk 0:03:04.1]} 8. a3 {[%clk 0:03:06.1]}
8... Be7 {[%clk 0:03:04]} 9. Nf4 {[%clk 0:03:06.2]} 9... d6 {[%clk 0:03:01.8]}
10. Bd3 {[%clk 0:03:00.3]} 10... c6 {[%clk 0:03:02.9]} 11. O-O {[%clk
0:02:55.7]} 11... e5 {[%clk 0:02:59.9]} 12. Nfe2 {[%clk 0:02:54.5]} 12... f5
{[%clk 0:02:52.2]} 13. b4 {[%clk 0:02:55.4]} 13... Nd7 {[%clk 0:02:31.4]} 14. b5
{[%clk 0:02:37.3]} 14... Bb7 {[%clk 0:02:16.7]} 15. a4 {[%clk 0:02:20.2]} 15...
g6 {[%clk 0:02:04.6]} 16. Bc2 {[%clk 0:02:15.2]} 16... Nf6 {[%clk 0:01:47.8]}
17. Bb3 {[%clk 0:02:08.3]} 17... Kh8 {[%clk 0:01:42.5]} 18. Rfd1 {[%clk
0:02:05.6]} 18... Qe8 {[%clk 0:01:33.2]} 19. a5 {[%clk 0:02:02.8]} 19... bxa5
{[%clk 0:01:30.5]} 20. Rxa5 {[%clk 0:02:03]} 20... Bd8 {[%clk 0:01:14.6]} 21.
Ra2 {[%clk 0:01:53]} 21... Bb6 {[%clk 0:00:53.6]} 22. bxc6 {[%clk 0:01:17.8]}
22... Qxc6 {[%clk 0:00:46.9]} 23. Nd5 {[%clk 0:01:18]} 23... Nxd5 {[%clk
0:00:39.4]} 24. cxd5 {[%clk 0:01:18.5]} 24... Qb5 {[%clk 0:00:36.4]} 25. Rb1
{[%clk 0:01:12.1]} 25... Rac8 {[%clk 0:00:35.3]} 26. dxe5 {[%clk 0:00:48.9]}
26... dxe5 {[%clk 0:00:36.4]} 27. Qb2 {[%clk 0:00:49.8]} 27... Rfe8 {[%clk
0:00:34.6]} 28. Nf4 {[%clk 0:00:44.6]} 28... Qb4 {[%clk 0:00:20.3]} 29. Ne6
{[%clk 0:00:41.7]} 29... Qc3 {[%clk 0:00:21.4]} 30. Qa3 {[%clk 0:00:20.4]} 30...
f4 {[%clk 0:00:16.4]} 31. Rc2 {[%clk 0:00:15.3]} 31... Qd3 {[%clk 0:00:14.2]}
32. Qb2 {[%clk 0:00:12.7]} 32... Qf5 {[%clk 0:00:07]} 33. Nxf4 {[%clk
0:00:10.4]} 33... Rxc2 {[%clk 0:00:05.5]} 34. Bxc2 {[%clk 0:00:11]} 34... Qf6
{[%clk 0:00:06.6]} 35. Bb3 {[%clk 0:00:09.4]} 35... Bc8 {[%clk 0:00:04.8]} 36.
Ne6 {[%clk 0:00:09.5]} 36... a5 {[%clk 0:00:02.9]} 37. h3 {[%clk 0:00:09.9]}
37... Bd7 {[%clk 0:00:03.5]} 38. Ba2 {[%clk 0:00:09]} 38... Ba7 {[%clk
0:00:04.6]} 39. Qb7 {[%clk 0:00:08.6]} 1-0

[Event "*** Qualifier 4: Titled Tuesday 3|2 Blitz"]
[Site "Chess.com"]
[Date "2017.04.25"]
[Round "8"]
[White "pawnwonder"]
[Black "arna"]
[Result "1/2-1/2"]
[WhiteElo "1851"]
[BlackElo "2064"]
[TimeControl "180+2"]
[EndTime "14:45:15 PDT"]
[Termination "Game drawn by agreement"]

1. e4 {[%clk 0:03:02]} 1... c5 {[%clk 0:02:57.9]} 2. Nf3 {[%clk 0:03:02.6]} 2...
Nc6 {[%clk 0:02:52]} 3. Bb5 {[%clk 0:03:02.4]} 3... g6 {[%clk 0:02:50.9]} 4.
Bxc6 {[%clk 0:03:03]} 4... dxc6 {[%clk 0:02:50.7]} 5. O-O {[%clk 0:03:04.9]}
5... Bg7 {[%clk 0:02:52]} 6. Re1 {[%clk 0:03:02.3]} 6... Nf6 {[%clk 0:02:50]} 7.
h3 {[%clk 0:03:02.2]} 7... O-O {[%clk 0:02:50.3]} 8. d3 {[%clk 0:03:03.1]} 8...
Ne8 {[%clk 0:02:41.1]} 9. Be3 {[%clk 0:03:03.1]} 9... b6 {[%clk 0:02:41.5]} 10.
Nc3 {[%clk 0:02:56.4]} 10... Nc7 {[%clk 0:02:41.8]} 11. a4 {[%clk 0:02:56]}
11... a5 {[%clk 0:02:41.1]} 12. Rb1 {[%clk 0:02:48.7]} 12... e5 {[%clk
0:02:38.8]} 13. Ne2 {[%clk 0:02:36.5]} 13... Ne6 {[%clk 0:02:38]} 14. Ng3 {[%clk
0:02:34.5]} 14... h6 {[%clk 0:02:34.5]} 15. Nf1 {[%clk 0:02:34.2]} 15... Ba6
{[%clk 0:02:34.4]} 16. N1d2 {[%clk 0:02:29.2]} 16... Nd4 {[%clk 0:02:27.2]} 17.
Nc4 {[%clk 0:02:23.8]} 17... Qc7 {[%clk 0:02:24.1]} 18. c3 {[%clk 0:01:38.1]}
18... Nxf3+ {[%clk 0:02:15.8]} 19. Qxf3 {[%clk 0:01:38.6]} 19... Rad8 {[%clk
0:02:17.2]} 20. Rbd1 {[%clk 0:01:37]} 20... Rd7 {[%clk 0:02:01.6]} 21. Qg3
{[%clk 0:01:36.9]} 21... g5 {[%clk 0:01:54.1]} 22. h4 {[%clk 0:01:36.6]} 22...
f6 {[%clk 0:01:55.3]} 23. hxg5 {[%clk 0:01:35.7]} 23... fxg5 {[%clk 0:01:55.4]}
24. Qg4 {[%clk 0:01:25.7]} 24... Re7 {[%clk 0:01:41]} 25. g3 {[%clk 0:01:13.4]}
25... Bc8 {[%clk 0:01:39.1]} 26. Qe2 {[%clk 0:01:06.8]} 26... Rd8 {[%clk
0:01:25.8]} 27. Kg2 {[%clk 0:01:05.1]} 27... Be6 {[%clk 0:01:20.8]} 28. Rh1
{[%clk 0:01:03.4]} 28... Red7 {[%clk 0:01:18.4]} 29. Rd2 {[%clk 0:00:37.9]}
29... Bxc4 {[%clk 0:01:12.6]} 30. dxc4 {[%clk 0:00:38.1]} 30... Rxd2 {[%clk
0:01:14.5]} 31. Bxd2 {[%clk 0:00:38.7]} 31... Qd6 {[%clk 0:01:16.4]} 32. Be3
{[%clk 0:00:38.8]} 32... Qd3 {[%clk 0:01:15.2]} 33. Qxd3 {[%clk 0:00:36.5]}
33... Rxd3 {[%clk 0:01:17.1]} 34. Re1 {[%clk 0:00:36.1]} 34... Kf7 {[%clk
0:01:16.4]} 35. Kf3 {[%clk 0:00:36.4]} 35... Kg6 {[%clk 0:01:12.4]} 36. Ke2
{[%clk 0:00:37]} 36... Rd7 {[%clk 0:01:11.6]} 37. g4 {[%clk 0:00:34.2]} 37...
Bf8 {[%clk 0:01:05.6]} 38. Rd1 {[%clk 0:00:30.7]} 38... Rxd1 {[%clk 0:01:05.9]}
39. Kxd1 {[%clk 0:00:31.4]} 39... h5 {[%clk 0:01:07.8]} 40. gxh5+ {[%clk
0:00:31.5]} 40... Kxh5 {[%clk 0:01:09.7]} 41. Ke2 {[%clk 0:00:33.3]} 41... Kg4
{[%clk 0:01:09.7]} 42. f3+ {[%clk 0:00:34.3]} 42... Kh4 {[%clk 0:01:06.4]} 43.
Bf2+ {[%clk 0:00:34.4]} 43... Kh5 {[%clk 0:01:03.9]} 44. Bg3 {[%clk 0:00:34.9]}
44... Bd6 {[%clk 0:00:59.8]} 45. Kf2 {[%clk 0:00:32.1]} 45... g4 {[%clk
0:00:58.5]} 46. fxg4+ {[%clk 0:00:32.7]} 46... Kxg4 {[%clk 0:00:59.2]} 47. Kg2
{[%clk 0:00:33.3]} 1/2-1/2

[Event "*** Qualifier 4: Titled Tuesday 3|2 Blitz"]
[Site "Chess.com"]
[Date "2017.04.25"]
[Round "8"]
[White "underdogchss"]
[Black "Oneofmyturns"]
[Result "0-1"]
[WhiteElo "2395"]
[BlackElo "2516"]
[TimeControl "180+2"]
[EndTime "14:45:24 PDT"]
[Termination "Oneofmyturns won by resignation"]

1. d4 {[%clk 0:03:02]} 1... Nf6 {[%clk 0:03:00.9]} 2. Nf3 {[%clk 0:03:03.3]}
2... d5 {[%clk 0:03:01.4]} 3. c4 {[%clk 0:03:04.4]} 3... e6 {[%clk 0:03:02.8]}
4. Nc3 {[%clk 0:03:05.6]} 4... a6 {[%clk 0:03:04]} 5. cxd5 {[%clk 0:03:05.5]}
5... exd5 {[%clk 0:03:04.6]} 6. Bf4 {[%clk 0:03:07.2]} 6... Be6 {[%clk 0:03:04]}
7. e3 {[%clk 0:03:04.6]} 7... Nbd7 {[%clk 0:03:04.8]} 8. Bd3 {[%clk 0:02:57.9]}
8... Be7 {[%clk 0:03:05.8]} 9. h3 {[%clk 0:02:55.6]} 9... O-O {[%clk 0:03:05.4]}
10. Ng5 {[%clk 0:02:55.8]} 10... c5 {[%clk 0:02:57.8]} 11. O-O {[%clk
0:02:55.3]} 11... b5 {[%clk 0:02:50.5]} 12. dxc5 {[%clk 0:02:38.5]} 12... Nxc5
{[%clk 0:02:52.4]} 13. Nxe6 {[%clk 0:02:35.9]} 13... Nxe6 {[%clk 0:02:43.6]} 14.
Be5 {[%clk 0:02:35.9]} 14... Bd6 {[%clk 0:02:13]} 15. Bxf6 {[%clk 0:02:28.9]}
15... Qxf6 {[%clk 0:02:14.9]} 16. Nxd5 {[%clk 0:02:29.8]} 16... Qe5 {[%clk
0:02:01.8]} 17. f4 {[%clk 0:02:29.2]} 17... Qxb2 {[%clk 0:02:02.8]} 18. Rb1
{[%clk 0:02:08.2]} 18... Qa3 {[%clk 0:01:58.8]} 19. Rb3 {[%clk 0:01:53.5]} 19...
Qc5 {[%clk 0:01:58.3]} 20. Rc3 {[%clk 0:01:54.6]} 20... Qa7 {[%clk 0:01:54.1]}
21. Rc6 {[%clk 0:01:48.4]} 21... Bxf4 {[%clk 0:01:39.5]} 22. Qh5 {[%clk
0:01:22.6]} 22... Bxe3+ {[%clk 0:00:57.3]} 23. Kh1 {[%clk 0:01:23.2]} 23... Bh6
{[%clk 0:00:52.9]} 24. Nf6+ {[%clk 0:00:57.3]} 24... Kh8 {[%clk 0:00:52]} 25.
Nxh7 {[%clk 0:00:58]} 25... Rfd8 {[%clk 0:00:22.6]} 26. Be4 {[%clk 0:00:47.4]}
26... Qe3 {[%clk 0:00:18.6]} 27. Rxe6 {[%clk 0:00:44]} 27... fxe6 {[%clk
0:00:19.7]} 28. Bxa8 {[%clk 0:00:34.5]} 28... Rxa8 {[%clk 0:00:18.3]} 29. Nf8
{[%clk 0:00:35.3]} 29... Qd3 {[%clk 0:00:15.5]} 30. Rf3 {[%clk 0:00:13.1]} 30...
Qd1+ {[%clk 0:00:14]} 31. Kh2 {[%clk 0:00:14.4]} 31... Qd6+ {[%clk 0:00:15]} 32.
Kh1 {[%clk 0:00:14.8]} 32... Rxf8 {[%clk 0:00:15.7]} 33. Rxf8+ {[%clk
0:00:13.9]} 33... Qxf8 {[%clk 0:00:17.6]} 34. Qe2 {[%clk 0:00:15.1]} 34... Qf5
{[%clk 0:00:13.7]} 35. a3 {[%clk 0:00:15.5]} 35... e5 {[%clk 0:00:13.8]} 36. Qd1
{[%clk 0:00:14.8]} 36... e4 {[%clk 0:00:14.1]} 37. Qe2 {[%clk 0:00:14.5]} 37...
e3 {[%clk 0:00:14.2]} 38. Qd1 {[%clk 0:00:10.5]} 38... Qe4 {[%clk 0:00:09.7]}
39. Qe2 {[%clk 0:00:11]} 39... Bf4 {[%clk 0:00:10.9]} 40. Qh5+ {[%clk
0:00:11.4]} 40... Kg8 {[%clk 0:00:12]} 41. Qe2 {[%clk 0:00:12]} 41... Qb1+
{[%clk 0:00:12.9]} 0-1

[Event "*** Qualifier 4: Titled Tuesday 3|2 Blitz"]
[Site "Chess.com"]
[Date "2017.04.25"]
[Round "8"]
[White "Bugcrusher"]
[Black "ChristopherYoo"]
[Result "0-1"]
[WhiteElo "2451"]
[BlackElo "2298"]
[TimeControl "180+2"]
[EndTime "14:45:31 PDT"]
[Termination "ChristopherYoo won by resignation"]

1. d4 {[%clk 0:03:02]} 1... Nf6 {[%clk 0:02:59.5]} 2. c4 {[%clk 0:02:56.5]} 2...
g6 {[%clk 0:02:59.6]} 3. Nc3 {[%clk 0:02:57.6]} 3... d5 {[%clk 0:03:00]} 4. cxd5
{[%clk 0:02:58.5]} 4... Nxd5 {[%clk 0:03:00.6]} 5. e4 {[%clk 0:03:00.2]} 5...
Nxc3 {[%clk 0:03:00.8]} 6. bxc3 {[%clk 0:03:02.1]} 6... Bg7 {[%clk 0:03:01.2]}
7. Nf3 {[%clk 0:03:03.7]} 7... c5 {[%clk 0:03:01.9]} 8. Be2 {[%clk 0:03:05]}
8... Qa5 {[%clk 0:03:01.7]} 9. O-O {[%clk 0:03:04.6]} 9... Nc6 {[%clk
0:02:44.9]} 10. d5 {[%clk 0:03:00.9]} 10... Bxc3 {[%clk 0:02:32.9]} 11. Rb1
{[%clk 0:02:26.2]} 11... Nd4 {[%clk 0:02:19.8]} 12. Nxd4 {[%clk 0:02:23.1]}
12... Bxd4 {[%clk 0:02:20.7]} 13. Bb5+ {[%clk 0:02:21]} 13... Kf8 {[%clk
0:02:21.5]} 14. Bh6+ {[%clk 0:02:21.2]} 14... Bg7 {[%clk 0:02:16.2]} 15. Qc1
{[%clk 0:02:17.6]} 15... Qc7 {[%clk 0:01:55.2]} 16. Qb2 {[%clk 0:02:11.1]} 16...
f6 {[%clk 0:01:55.1]} 17. Bd2 {[%clk 0:01:45.9]} 17... b6 {[%clk 0:01:35.5]} 18.
f4 {[%clk 0:01:39]} 18... Bd7 {[%clk 0:01:32.5]} 19. Bc3 {[%clk 0:01:30.8]}
19... Bxb5 {[%clk 0:01:25.3]} 20. Qxb5 {[%clk 0:01:29.5]} 20... Rd8 {[%clk
0:01:13.8]} 21. Rbd1 {[%clk 0:01:22.2]} 21... Qd7 {[%clk 0:01:00.7]} 22. Qa6
{[%clk 0:01:08.1]} 22... f5 {[%clk 0:00:50.6]} 23. e5 {[%clk 0:01:06.8]} 23...
Qc7 {[%clk 0:00:41.2]} 24. d6 {[%clk 0:01:03.6]} 24... exd6 {[%clk 0:00:40.8]}
25. exd6 {[%clk 0:01:04.5]} 25... Rxd6 {[%clk 0:00:27.3]} 26. Rxd6 {[%clk
0:01:01.6]} 26... Qxd6 {[%clk 0:00:28.2]} 27. Qc8+ {[%clk 0:01:02.8]} 27... Kf7
{[%clk 0:00:26.4]} 28. Qb7+ {[%clk 0:01:01.6]} 28... Qe7 {[%clk 0:00:26.8]} 29.
Qxe7+ {[%clk 0:01:01.5]} 29... Kxe7 {[%clk 0:00:27.9]} 30. Bxg7 {[%clk
0:01:02.5]} 30... Rd8 {[%clk 0:00:28.6]} 31. Be5 {[%clk 0:00:58.2]} 31... Rd2
{[%clk 0:00:24.2]} 32. a4 {[%clk 0:00:56.1]} 32... Ra2 {[%clk 0:00:21.4]} 33.
Ra1 {[%clk 0:00:56.2]} 33... Rxa1+ {[%clk 0:00:18.8]} 34. Bxa1 {[%clk
0:00:56.7]} 34... Kd6 {[%clk 0:00:20.1]} 35. Kf2 {[%clk 0:00:58]} 35... Kd5
{[%clk 0:00:21.4]} 36. Ke3 {[%clk 0:00:59.2]} 36... Kc4 {[%clk 0:00:22.5]} 37.
Be5 {[%clk 0:01:00.2]} 37... Kb3 {[%clk 0:00:21.5]} 38. Bb8 {[%clk 0:01:00.3]}
38... c4 {[%clk 0:00:18.4]} 39. Kd2 {[%clk 0:00:49.5]} 39... a6 {[%clk
0:00:18.1]} 40. Bc7 {[%clk 0:00:35.9]} 40... b5 {[%clk 0:00:17.2]} 41. axb5
{[%clk 0:00:32.1]} 41... axb5 {[%clk 0:00:18.2]} 42. Be5 {[%clk 0:00:25]} 42...
b4 {[%clk 0:00:18.3]} 43. g3 {[%clk 0:00:22.6]} 43... c3+ {[%clk 0:00:18.1]} 44.
Kc1 {[%clk 0:00:23.5]} 44... Kc4 {[%clk 0:00:18.4]} 45. Kc2 {[%clk 0:00:23.1]}
45... b3+ {[%clk 0:00:19.2]} 46. Kc1 {[%clk 0:00:23.4]} 46... Kd3 {[%clk
0:00:20.1]} 47. h3 {[%clk 0:00:13.4]} 47... b2+ {[%clk 0:00:20.7]} 48. Kb1
{[%clk 0:00:14.5]} 48... c2+ {[%clk 0:00:21.5]} 49. Kxb2 {[%clk 0:00:14.9]}
49... Kd2 {[%clk 0:00:22.6]} 0-1

[Event "*** Qualifier 4: Titled Tuesday 3|2 Blitz"]
[Site "Chess.com"]
[Date "2017.04.25"]
[Round "8"]
[White "Fandorine"]
[Black "Zlatan56"]
[Result "1-0"]
[WhiteElo "2707"]
[BlackElo "2610"]
[TimeControl "180+2"]
[EndTime "14:45:33 PDT"]
[Termination "Fandorine won by resignation"]

1. e4 {[%clk 0:03:02]} 1... e5 {[%clk 0:03:00.1]} 2. Nf3 {[%clk 0:02:58.6]} 2...
Nc6 {[%clk 0:03:01.4]} 3. Bb5 {[%clk 0:02:59.2]} 3... Nf6 {[%clk 0:03:01.2]} 4.
d3 {[%clk 0:03:00.2]} 4... Bc5 {[%clk 0:03:01]} 5. Bxc6 {[%clk 0:02:52]} 5...
dxc6 {[%clk 0:03:02.9]} 6. Nbd2 {[%clk 0:02:53.5]} 6... Nd7 {[%clk 0:02:54.8]}
7. Qe2 {[%clk 0:02:52.8]} 7... Qe7 {[%clk 0:02:54.5]} 8. Nc4 {[%clk 0:02:53.5]}
8... f6 {[%clk 0:02:54.6]} 9. Bd2 {[%clk 0:02:53.9]} 9... Nb6 {[%clk 0:02:54.1]}
10. Ne3 {[%clk 0:02:55.1]} 10... Be6 {[%clk 0:02:53.3]} 11. h4 {[%clk
0:02:56.2]} 11... O-O-O {[%clk 0:02:50.1]} 12. h5 {[%clk 0:02:55.6]} 12... Kb8
{[%clk 0:02:49.1]} 13. a4 {[%clk 0:02:41.3]} 13... a6 {[%clk 0:02:45.3]} 14. Nh4
{[%clk 0:02:22.5]} 14... Qd7 {[%clk 0:02:40.8]} 15. Nf3 {[%clk 0:01:51.9]} 15...
Qe7 {[%clk 0:02:27.8]} 16. Kf1 {[%clk 0:01:41.7]} 16... g6 {[%clk 0:02:26]} 17.
g3 {[%clk 0:01:41.4]} 17... Bd6 {[%clk 0:02:22.7]} 18. Kg2 {[%clk 0:01:38.7]}
18... f5 {[%clk 0:02:15.8]} 19. a5 {[%clk 0:01:21.6]} 19... Nd7 {[%clk
0:02:13.6]} 20. Nc4 {[%clk 0:01:22.9]} 20... fxe4 {[%clk 0:01:55.3]} 21. dxe4
{[%clk 0:01:24.8]} 21... Rdf8 {[%clk 0:01:41.3]} 22. Ng5 {[%clk 0:01:11]} 22...
Bxc4 {[%clk 0:01:23.3]} 23. Qxc4 {[%clk 0:01:12.9]} 23... h6 {[%clk 0:01:23.3]}
24. Nf3 {[%clk 0:00:39.1]} 24... Qf6 {[%clk 0:01:20.5]} 25. Qe2 {[%clk
0:00:40.3]} 25... g5 {[%clk 0:01:20.7]} 26. Nh2 {[%clk 0:00:41.3]} 26... Nc5
{[%clk 0:01:16.4]} 27. Ng4 {[%clk 0:00:42.5]} 27... Qf7 {[%clk 0:01:15.9]} 28.
f3 {[%clk 0:00:37]} 28... Ne6 {[%clk 0:01:13.7]} 29. c3 {[%clk 0:00:37.9]} 29...
Rd8 {[%clk 0:01:12.7]} 30. Be3 {[%clk 0:00:34.3]} 30... Qg7 {[%clk 0:01:11.5]}
31. Rad1 {[%clk 0:00:33.2]} 31... Rd7 {[%clk 0:01:12.2]} 32. b4 {[%clk
0:00:33.1]} 32... Rhd8 {[%clk 0:01:12.5]} 33. Bf2 {[%clk 0:00:34.6]} 33... c5
{[%clk 0:01:04.3]} 34. b5 {[%clk 0:00:29.4]} 34... axb5 {[%clk 0:00:45.2]} 35.
Qxb5 {[%clk 0:00:31.3]} 35... c6 {[%clk 0:00:44.2]} 36. Qe2 {[%clk 0:00:31.2]}
36... Bf8 {[%clk 0:00:41.9]} 37. Rxd7 {[%clk 0:00:21.5]} 37... Qxd7 {[%clk
0:00:40.9]} 38. Rb1 {[%clk 0:00:21.6]} 38... Ka7 {[%clk 0:00:36]} 39. Nxe5
{[%clk 0:00:15.9]} 39... Qd2 {[%clk 0:00:31.9]} 40. Qc4 {[%clk 0:00:16.8]} 40...
Rd6 {[%clk 0:00:24.1]} 41. Qb3 {[%clk 0:00:14.1]} 41... Nd8 {[%clk 0:00:23]} 42.
Nc4 {[%clk 0:00:14]} 42... Qd3 {[%clk 0:00:18.5]} 43. Nxd6 {[%clk 0:00:15]}
43... Qxd6 {[%clk 0:00:19.3]} 44. Rd1 {[%clk 0:00:13.7]} 1-0

[Event "*** Qualifier 4: Titled Tuesday 3|2 Blitz"]
[Site "Chess.com"]
[Date "2017.04.25"]
[Round "8"]
[White "Rock700chess"]
[Black "djano"]
[Result "1-0"]
[WhiteElo "2281"]
[BlackElo "2401"]
[TimeControl "180+2"]
[EndTime "14:45:37 PDT"]
[Termination "Rock700chess won by resignation"]

1. e4 {[%clk 0:03:02]} 1... e6 {[%clk 0:03:02]} 2. d4 {[%clk 0:02:55.8]} 2... d5
{[%clk 0:03:02.8]} 3. Nc3 {[%clk 0:02:57.5]} 3... dxe4 {[%clk 0:03:04.1]} 4.
Nxe4 {[%clk 0:02:59.4]} 4... Nd7 {[%clk 0:03:05.6]} 5. Nf3 {[%clk 0:02:58.5]}
5... Ngf6 {[%clk 0:03:06.7]} 6. Neg5 {[%clk 0:02:47.8]} 6... Be7 {[%clk
0:02:53.7]} 7. Nxf7 {[%clk 0:02:33.4]} 7... Kxf7 {[%clk 0:02:54.8]} 8. Ng5+
{[%clk 0:02:34.9]} 8... Kg8 {[%clk 0:02:55.7]} 9. Nxe6 {[%clk 0:02:34.6]} 9...
Qe8 {[%clk 0:02:56.8]} 10. Bc4 {[%clk 0:02:32.9]} 10... Bb4+ {[%clk 0:02:01.7]}
11. Kf1 {[%clk 0:02:20.5]} 11... Nb6 {[%clk 0:01:52.1]} 12. Nxc7+ {[%clk
0:02:07.8]} 12... Nxc4 {[%clk 0:01:53.2]} 13. Nxe8 {[%clk 0:02:07]} 13... Nxe8
{[%clk 0:01:55.1]} 14. c3 {[%clk 0:02:05.3]} 14... Bf8 {[%clk 0:01:49.4]} 15.
Qb3 {[%clk 0:02:05]} 15... Nd6 {[%clk 0:01:49.1]} 16. Be3 {[%clk 0:02:02.4]}
16... Be6 {[%clk 0:01:48.5]} 17. Qc2 {[%clk 0:02:00.4]} 17... Re8 {[%clk
0:01:46]} 18. Bf4 {[%clk 0:01:58.9]} 18... g6 {[%clk 0:01:35.6]} 19. b3 {[%clk
0:01:55.7]} 19... Nb6 {[%clk 0:01:35.8]} 20. Be5 {[%clk 0:01:54.8]} 20... Bf5
{[%clk 0:01:16.9]} 21. Qb2 {[%clk 0:01:36.2]} 21... Rxe5 {[%clk 0:00:48.4]} 22.
dxe5 {[%clk 0:01:33.4]} 22... Ne4 {[%clk 0:00:50.3]} 23. f3 {[%clk 0:01:32.7]}
23... Nc5 {[%clk 0:00:48]} 24. Rd1 {[%clk 0:01:34.2]} 24... Bd3+ {[%clk
0:00:42.1]} 25. Kf2 {[%clk 0:01:33.9]} 25... Ba6 {[%clk 0:00:41.2]} 26. Qc2
{[%clk 0:01:25]} 26... Be7 {[%clk 0:00:39]} 27. b4 {[%clk 0:01:13]} 27... Ne6
{[%clk 0:00:37.7]} 28. a4 {[%clk 0:01:09.3]} 28... Bc4 {[%clk 0:00:35.1]} 29.
Rd2 {[%clk 0:00:58.6]} 29... Kf7 {[%clk 0:00:35]} 30. Rhd1 {[%clk 0:00:56.8]}
30... Rc8 {[%clk 0:00:26.4]} 31. a5 {[%clk 0:00:55.4]} 31... Na8 {[%clk
0:00:27.6]} 32. g3 {[%clk 0:00:54.5]} 32... Nac7 {[%clk 0:00:27.8]} 33. Qe4
{[%clk 0:00:53.4]} 33... Ba6 {[%clk 0:00:26.3]} 34. Rd7 {[%clk 0:00:46.6]} 34...
Ke8 {[%clk 0:00:26.7]} 35. f4 {[%clk 0:00:42.3]} 35... Nb5 {[%clk 0:00:27.2]}
36. f5 {[%clk 0:00:36.7]} 36... Nxc3 {[%clk 0:00:19.4]} 37. Qg4 {[%clk 0:00:37]}
37... Nxd1+ {[%clk 0:00:18.7]} 38. Qxd1 {[%clk 0:00:37]} 38... gxf5 {[%clk
0:00:18.7]} 39. Rxe7+ {[%clk 0:00:36.8]} 39... Kxe7 {[%clk 0:00:19.6]} 40. Qd6+
{[%clk 0:00:37.4]} 40... Ke8 {[%clk 0:00:17.7]} 41. Qxe6+ {[%clk 0:00:38.4]}
41... Kd8 {[%clk 0:00:19.2]} 42. Qxf5 {[%clk 0:00:34.7]} 42... Bb5 {[%clk
0:00:17]} 43. Qf8+ {[%clk 0:00:34]} 43... Kd7 {[%clk 0:00:17.1]} 44. e6+ {[%clk
0:00:34.7]} 44... Kc7 {[%clk 0:00:18.6]} 45. Qf4+ {[%clk 0:00:34]} 45... Kc6
{[%clk 0:00:19.3]} 46. e7 {[%clk 0:00:30.6]} 46... Kd7 {[%clk 0:00:20]} 47. Qf5+
{[%clk 0:00:30]} 47... Kc7 {[%clk 0:00:18.8]} 48. Qe5+ {[%clk 0:00:25.2]} 48...
Kc6 {[%clk 0:00:18.8]} 49. e8=Q+ {[%clk 0:00:24.4]} 1-0